bitfinex/quotes_ETHUSD_20240607
["timestamp","ask_amount","ask_price","bid_price","bid_amount"]
[1717795073629,0.65601039,3693.5,3693.3,2.70754]
[1717795073832,0.07048234,3693.5,3693.3,2.70754]
[1717795074034,0.5855262,3693.8,3693.3,2.70754]
[1717795074234,0.07044929,3693.4,3693.3,2.70754]
[1717795074531,0.5855262,3693.6,3693.3,2.70754]
[1717795074729,0.07044929,3693.4,3693.3,2.70754]
[1717795074930,0.5855262,3693.7,3693.3,2.70754]
[1717795075134,0.07044929,3693.4,3693.3,2.70754]
[1717795075741,0.65597549,3693.4,3693.3,2.70754]
[1717795075897,0.07044929,3693.4,3693.3,2.70754]
[1717795076344,0.5855262,3693.7,3693.3,2.70754]
[1717795076635,3.73466539,3693.9,3693.3,2.70754]
[1717795076636,0.5855262,3693.6,3693.3,2.70754]
[1717795076930,0.5855262,3693.5,3693.3,2.70754]
[1717795077325,0.07044929,3693.4,3693.3,2.70754]
[1717795077931,0.5855262,3693.7,3693.3,2.70754]
[1717795078101,0.07045149,3693.4,3693.3,2.70754]
[1717795078433,0.0704691,3693.4,3693.3,2.70754]
[1717795079239,3.73466539,3693.9,3693.3,2.70754]
[1717795079240,0.5855262,3693.7,3693.3,2.70754]
[1717795079404,0.0704691,3693.4,3693.3,2.70754]
[1717795079602,0.5855262,3693.5,3693.3,2.70754]
[1717795079816,0.0704691,3693.4,3693.3,2.70754]
[1717795080054,0.5855262,3693.8,3693.3,2.70754]
[1717795080195,0.0704691,3693.4,3693.3,2.70754]
[1717795080399,0.5855262,3693.6,3693.3,2.70754]
[1717795080701,0.0704691,3693.4,3693.3,2.70754]
[1717795080901,0.5855262,3693.7,3693.3,2.70754]
[1717795081135,0.0704691,3693.4,3693.3,2.70754]
[1717795081745,0.5855262,3693.6,3693.3,2.70754]
[1717795081958,0.0704691,3693.4,3693.3,2.70754]
[1717795082903,0.5855262,3693.5,3693.3,2.70754]
[1717795083256,0.07130489,3693.4,3693.3,3.213444]
[1717795083556,0.5855262,3693.8,3693.3,3.213444]
[1717795083831,0.5855262,3693.8,3693.3,2.70754]
[1717795084042,0.07140397,3693.7,3693.3,2.70754]
[1717795084267,2.93551123,3693.8,3693.3,2.70754]
[1717795084563,0.07137094,3693.6,3693.3,2.70754]
[1717795084759,0.07140397,3693.7,3693.3,2.70754]
[1717795084927,0.07133792,3693.5,3693.3,2.70754]
[1717795085124,2.34998503,3693.8,3693.3,2.70754]
[1717795085455,0.07130489,3693.4,3693.3,2.70754]
[1717795085671,2.34998503,3693.8,3693.3,3.213444]
[1717795085809,0.07130489,3693.4,3693.3,3.213444]
[1717795086130,2.35177251,3693.8,3693.3,3.213444]
[1717795086341,0.07130489,3693.4,3693.3,2.70754]
[1717795086545,2.93728356,3693.8,3693.3,2.70754]
[1717795086705,0.07130489,3693.4,3693.3,2.70754]
[1717795087233,2.93728356,3693.8,3693.3,2.70754]
[1717795087546,0.07130489,3693.4,3693.3,2.70754]
[1717795087702,2.35177251,3693.8,3693.3,2.70754]
[1717795087900,0.07130489,3693.4,3693.3,2.70754]
[1717795088142,2.35177251,3693.8,3693.3,2.70754]
[1717795088350,0.07130489,3693.4,3693.3,2.70754]
[1717795088559,2.93759466,3693.8,3693.3,2.70754]
[1717795088698,0.07130489,3693.4,3693.3,2.70754]
[1717795088905,2.35208361,3693.8,3693.3,2.70754]
[1717795089128,0.07130489,3693.4,3693.3,2.70754]
[1717795089343,2.93759466,3693.8,3693.3,2.70754]
[1717795089526,0.07130489,3693.4,3693.3,2.70754]
[1717795089735,2.35208361,3693.8,3693.3,2.70754]
[1717795089936,0.07130489,3693.4,3693.3,2.70754]
[1717795090107,2.35208361,3693.8,3693.3,2.70754]
[1717795090419,2.35208361,3693.7,3693.3,3.213444]
[1717795090635,2.42348758,3693.7,3693.3,2.70754]
[1717795091156,0.07140397,3693.7,3693.3,2.70754]
[1717795091328,2.42348758,3693.7,3693.3,2.70754]
[1717795091655,0.07137094,3693.6,3693.3,2.70754]
[1717795091852,0.07137094,3693.6,3693.3,3.213444]
[1717795092220,2.35239562,3693.7,3693.3,3.213444]
[1717795092420,0.07133792,3693.5,3693.3,3.213444]
[1717795092624,2.35239562,3693.8,3693.6,2.70734]
[1717795093462,2.35239562,3693.8,3693.7,2.4076]
[1717795093623,2.35239562,3693.9,3693.8,2.70723]
[1717795093832,2.93790667,3694.1,3693.8,2.70723]
[1717795094047,2.35239562,3694.2,3694.1,2.70701]
[1717795094445,2.93780739,3694.4,3694.1,2.70701]
[1717795095349,0.06931915,3694.3,3694.1,2.70701]
[1717795097459,0.06931915,3694.3,3694.2,2.4076]
[1717795098768,2.93780739,3694.8,3694.3,2.70684]
[1717795099767,0.0436027,3694.9,3694.3,2.70684]
[1717795099768,2.39599832,3694.9,3694.3,2.70684]
[1717795101669,0.0436027,3694.9,3694.3,2.70684]
[1717795102032,0.0436027,3694.9,3694.3,3.2453541]
[1717795103567,0.0436027,3694.9,3694.6,2.70664]
[1717795103769,0.0436027,3694.9,3694.8,2.7065]
[1717795105071,0.0436027,3694.9,3694.8,5.1141]
[1717795111384,0.0436027,3694.9,3694.8,7.8206]
[1717795111536,0.0436027,3694.9,3694.8,8.60266]
[1717795114567,0.0436027,3694.9,3694.8,12.70201466]
[1717795114873,0.0436027,3694.9,3694.8,13.25201466]
[1717795119049,0.0436027,3694.9,3694.8,11.30916]
[1717795119767,0.0436027,3694.9,3694.8,8.60266]
[1717795119970,0.0436027,3694.9,3694.8,6.19506]
[1717795120886,0.10218261,3694.9,3694.8,6.19506]
[1717795124092,0.10218261,3694.9,3694.8,6.19506]
[1717795139681,0.10218261,3694.9,3694.8,3.48856]
[1717795139889,0.10218261,3694.9,3694.8,2.7065]
[1717795150172,0.10218261,3694.9,3694.8,7.7601]
[1717795150572,0.0436027,3694.9,3694.8,7.7601]
[1717795156198,0.58516984,3695.8,3695.7,5.41168]
[1717795156396,19.81,3696.8,3696.4,2.7053]
[1717795156397,0.58516984,3696.7,3696.4,2.7053]
[1717795156604,2.3355,3696.6,3696.4,2.7053]
[1717795157788,3.72835466,3696.6,3696.4,2.7053]
[1717795169791,2.3032,3696.0,3695.0,2.70633]
[1717795169963,1.89373166,3695.9,3695.0,2.70633]
[1717795170166,2.34435155,3695.8,3695.0,2.70633]
[1717795170374,1.39285466,3695.7,3695.0,2.70633]
[1717795170749,0.05318575,3695.6,3695.0,2.70633]
[1717795170982,1.39285466,3695.5,3695.0,2.70633]
[1717795171337,0.05266014,3695.4,3695.0,2.70633]
[1717795178241,3.91300614,3695.3,3693.6,2.3778]
[1717795178571,2.75734906,3695.2,3694.2,2.7069]
[1717795178742,1.39285466,3695.1,3694.2,2.7069]
[1717795178879,1.44331006,3695.1,3694.2,2.7069]
[1717795179074,0.71104411,3695.0,3694.2,2.7069]
[1717795179278,2.15413256,3695.0,3694.2,2.7069]
[1717795182393,1.39285466,3694.9,3693.6,2.3778]
[1717795182587,2.3756,3694.8,3693.8,2.70723]
[1717795182790,0.45297326,3694.7,3693.8,2.70723]
[1717795183211,0.05004354,3694.6,3693.8,2.70723]
[1717795192508,0.05004354,3694.6,3693.2,2.3778]
[1717795192509,2.70682,3694.4,3693.4,2.7075]
[1717795192820,1.39285466,3694.3,3693.4,2.7075]
[1717795193117,1.44271896,3694.3,3693.4,2.7075]
[1717795195298,2.2802,3694.2,3693.4,2.7075]
[1717795195495,2.32994709,3694.2,3693.4,2.7075]
[1717795195801,2.2802,3694.0,3693.4,2.7075]
[1717795196009,2.86561826,3694.0,3693.4,2.7075]
[1717795196225,0.04961696,3693.9,3693.4,2.7075]
[1717795199286,0.04961696,3693.9,3693.4,2.97825]
[1717795200320,0.04961696,3693.9,3693.4,2.7075]
[1717795205315,0.04961696,3693.9,3693.4,2.7063706]
[1717795210305,2.3434,3693.7,3693.0,2.70777]
[1717795210513,3.73625466,3693.7,3693.0,2.70777]
[1717795210711,0.0480682,3693.6,3693.0,2.70777]
[1717795212949,0.75576564,3693.6,3693.0,2.70777]
[1717795217737,2.4522,3693.5,3693.0,2.70777]
[1717795217935,2.50025276,3693.5,3693.0,2.70777]
[1717795219763,2.4522,3693.4,3692.7,2.70803]
[1717795220062,1.10414839,3693.3,3692.7,2.70803]
[1717795220222,0.51863211,3693.3,3692.7,2.70803]
[1717795220575,0.04779744,3693.2,3692.7,2.70803]
[1717795221524,2.4522,3693.0,3692.3,0.42430333]
[1717795221772,2.4522,3693.0,3690.3,1.5]
[1717795221773,2.4522,3692.8,3692.0,2.70855]
[1717795222259,0.04758833,3692.7,3692.0,2.70855]
[1717795223927,2.4522,3692.6,3692.0,2.70855]
[1717795224127,2.50023108,3692.6,3692.0,2.70855]
[1717795224360,2.9870198,3692.6,3692.0,2.70855]
[1717795224667,2.4522,3692.4,3691.1,2.70918]
[1717795225074,0.04782758,3692.3,3691.1,2.70918]
[1717795227407,2.75621758,3692.3,3691.1,2.70918]
[1717795227682,2.75621758,3692.3,3691.2,0.270918]
[1717795227988,2.75621758,3692.3,3691.1,2.70918]
[1717795227989,2.70852,3692.1,3691.1,2.70918]
[1717795228275,2.70864,3691.9,3690.8,2.312]
[1717795228488,3.35850959,3691.9,3690.8,2.312]
[1717795228777,2.39706904,3691.8,3690.7,2.70948]
[1717795230279,6.45113466,3691.7,3690.7,2.70948]
[1717795230582,2.70893,3691.5,3690.3,2.70978]
[1717795230801,0.64982201,3691.4,3690.3,2.70978]
[1717795230943,2.3495,3691.3,3690.3,2.70978]
[1717795231273,2.39624974,3691.3,3690.3,2.70978]
[1717795231651,2.42203686,3691.3,3690.3,2.70978]
[1717795238119,2.4997,3691.1,3690.3,2.70978]
[1717795238284,0.52813969,3691.0,3690.3,2.70978]
[1717795238462,2.4997,3691.1,3690.3,2.70978]
[1717795238659,0.07239101,3690.9,3690.3,2.70978]
[1717795238891,0.07242339,3691.0,3690.3,2.70978]
[1717795239088,0.07235863,3690.8,3690.3,2.70978]
[1717795239400,0.07232624,3690.7,3690.3,2.70978]
[1717795239601,2.4997,3691.1,3690.3,2.70978]
[1717795239803,0.07227658,3690.6,3690.3,2.70978]
[1717795240124,2.4997,3691.1,3690.3,2.70978]
[1717795240269,0.07224419,3690.5,3690.3,2.70978]
[1717795240469,2.4997,3691.1,3690.3,2.70978]
[1717795240670,0.07221179,3690.4,3690.3,2.70978]
[1717795240871,3.15987147,3691.1,3690.3,2.70978]
[1717795241083,0.07187184,3690.4,3690.3,2.70978]
[1717795241305,3.15987147,3691.1,3690.3,2.70978]
[1717795241948,0.07199729,3691.0,3690.3,2.70978]
[1717795253409,2.4382,3690.9,3690.3,2.70978]
[1717795253742,2.50442533,3690.9,3690.3,2.70978]
[1717795258535,3.09041362,3690.9,3690.3,2.70978]
[1717795258734,2.50442533,3690.9,3690.3,2.70978]
[1717795259424,0.58598829,3690.8,3690.3,2.70978]
[1717795259632,0.65251527,3690.8,3690.3,2.70978]
[1717795260749,0.58599251,3690.7,3690.3,2.70978]
[1717795261152,0.06646221,3690.6,3690.3,2.70978]
[1717795261354,0.65245472,3690.6,3690.3,2.70978]
[1717795261649,0.06646221,3690.6,3690.3,2.70978]
[1717795262017,0.65245472,3690.6,3690.3,2.70978]
[1717795262253,0.06646221,3690.6,3690.3,2.70978]
[1717795262748,0.65245472,3690.6,3690.3,2.70978]
[1717795262916,0.06646221,3690.6,3690.3,2.70978]
[1717795263111,2.4382,3690.9,3690.3,2.70978]
[1717795263112,0.58599251,3690.7,3690.3,2.70978]
[1717795263345,0.65245472,3690.6,3690.0,2.71]
[1717795263551,0.58599251,3690.5,3690.0,2.71]
[1717795263760,0.06639744,3690.4,3690.0,2.71]
[1717795264654,0.06636505,3690.3,3690.0,2.71]
[1717795265055,0.58599251,3690.6,3690.0,2.71]
[1717795265257,0.06633266,3690.2,3690.0,2.71]
[1717795265556,0.06630026,3690.1,3690.0,2.71]
[1717795265716,0.58599251,3690.7,3690.0,2.71]
[1717795265915,0.65245472,3690.6,3690.0,2.71]
[1717795266115,0.58599251,3690.5,3690.0,2.71]
[1717795266617,0.06639744,3690.4,3690.0,2.71]
[1717795267663,0.06636062,3690.3,3690.2,2.70983]
[1717795268114,0.58599251,3690.5,3690.2,2.70983]
[1717795268318,0.58599251,3690.8,3690.2,2.70983]
[1717795268514,0.58599251,3690.7,3690.2,2.70983]
[1717795268748,0.58599251,3690.6,3690.2,2.70983]
[1717795268971,0.06649903,3690.7,3690.2,2.70983]
[1717795268972,0.58599251,3690.5,3690.2,2.70983]
[1717795269129,0.06643426,3690.5,3690.2,2.70983]
[1717795269317,0.65242677,3690.5,3690.2,2.70983]
[1717795269663,0.06643426,3690.5,3690.2,2.70983]
[1717795270026,0.58599251,3690.6,3690.2,2.70983]
[1717795270220,0.06640187,3690.4,3690.2,2.70983]
[1717795270457,2.4382,3690.9,3690.2,2.70983]
[1717795270458,0.58599251,3690.7,3690.2,2.70983]
[1717795270661,2.4382,3690.9,3690.2,2.70983]
[1717795270662,0.06636948,3690.3,3690.2,2.70983]
[1717795271036,0.58599251,3690.8,3690.4,2.70966]
[1717795271219,0.58599251,3690.7,3690.4,2.70966]
[1717795271730,0.58599251,3690.6,3690.4,2.70966]
[1717795271967,0.58599251,3690.8,3690.4,2.70966]
[1717795272161,0.58599251,3690.7,3690.4,2.70966]
[1717795272333,0.58599251,3690.6,3690.4,2.70966]
[1717795272539,0.58599251,3690.8,3690.4,2.70966]
[1717795272855,0.58599251,3690.7,3690.4,2.70966]
[1717795273045,0.58599251,3690.6,3690.4,2.70966]
[1717795273368,0.58599251,3690.8,3690.4,2.70966]
[1717795273661,0.58599251,3690.7,3690.4,2.70966]
[1717795273831,0.58599251,3690.6,3690.4,2.70966]
[1717795274148,0.58599251,3690.8,3690.4,2.70966]
[1717795274452,0.58599251,3690.7,3690.4,2.70966]
[1717795274629,0.58599251,3690.6,3690.4,2.70966]
[1717795274834,0.58599251,3690.8,3690.4,2.70966]
[1717795275012,2.4382,3690.9,3690.4,2.70966]
[1717795275218,0.06597909,3690.7,3690.4,2.70966]
[1717795275428,0.58599105,3690.6,3690.4,2.70966]
[1717795275656,0.0659467,3690.6,3690.4,2.70966]
[1717795275815,0.58599105,3690.7,3690.4,2.70966]
[1717795276018,0.06591432,3690.5,3690.4,2.70966]
[1717795276216,0.58599105,3690.6,3690.4,2.70966]
[1717795276453,0.06591432,3690.5,3690.4,2.70966]
[1717795276867,0.58599105,3690.6,3690.4,2.70966]
[1717795277036,0.06591432,3690.5,3690.4,2.70966]
[1717795277233,0.58599105,3690.8,3690.4,2.70966]
[1717795277538,0.58599105,3690.7,3690.6,2.70952]
[1717795277938,0.58599105,3691.0,3690.6,2.70952]
[1717795278136,0.58599105,3690.9,3690.6,2.70952]
[1717795278481,9.77501364,3691.1,3690.6,2.70952]
[1717795278482,0.58599105,3690.8,3690.6,2.70952]
[1717795278624,0.58599105,3691.0,3690.6,2.70952]
[1717795278843,7.43,3691.1,3690.6,2.70952]
[1717795278844,0.58599105,3690.9,3690.6,2.70952]
[1717795279172,0.58599105,3690.8,3690.6,2.70952]
[1717795279378,0.58599105,3691.0,3690.6,2.70952]
[1717795279875,0.58599105,3691.1,3690.6,2.70952]
[1717795280078,0.58599105,3691.0,3690.6,2.70952]
[1717795280280,0.58599105,3691.1,3690.6,2.70952]
[1717795280772,2.3845,3691.2,3690.6,2.70952]
[1717795280773,0.58599105,3691.0,3690.6,2.70952]
[1717795280971,0.58599105,3691.1,3690.6,2.70952]
[1717795281182,0.58599105,3691.0,3690.6,2.70952]
[1717795281341,0.58599105,3691.1,3690.6,2.70952]
[1717795285589,2.3845,3691.2,3690.6,2.70952]
[1717795285793,2.97049105,3691.2,3690.6,2.70952]
[1717795285950,2.3845,3691.2,3690.6,2.70952]
[1717795286151,2.97049105,3691.2,3690.6,2.70952]
[1717795286375,2.3845,3691.2,3690.6,2.70952]
[1717795286763,2.97049105,3691.2,3690.6,5.17702]
[1717795286985,0.58599105,3691.3,3690.6,5.17702]
[1717795287184,0.58599105,3691.2,3690.6,5.17702]
[1717795287383,2.06476841,3691.3,3690.6,5.17702]
[1717795287684,0.58599105,3691.2,3690.6,5.17702]
[1717795288789,0.58599105,3691.2,3690.8,2.70939]
[1717795288992,7.43,3691.5,3691.0,2.70924]
[1717795288993,0.58599105,3691.3,3691.0,2.70924]
[1717795289191,0.58599105,3691.4,3691.2,2.70914]
[1717795289661,0.58599105,3691.8,3691.2,2.70914]
[1717795290389,0.0619627,3691.7,3691.2,2.70914]
[1717795290566,0.0619627,3691.7,3691.4,2.70894]
[1717795290880,0.58599105,3691.8,3691.4,2.70894]
[1717795291082,0.06193033,3691.6,3691.4,2.70894]
[1717795291245,0.58599105,3691.8,3691.4,2.70894]
[1717795291450,0.06202243,3691.5,3691.4,2.70894]
[1717795291673,0.06202243,3691.5,3691.1,2.4675]
[1717795291674,0.58599105,3691.8,3691.6,2.70878]
[1717795292509,0.58599105,3691.8,3691.6,5.06838]
[1717795292650,2.90019105,3692.3,3691.6,5.06838]
[1717795293054,2.89999746,3692.3,3691.6,2.70878]
[1717795295579,2.89999746,3692.3,3691.4,2.3596]
[1717795295580,0.58579746,3692.3,3692.0,2.70854]
[1717795297374,2.89999746,3692.7,3692.0,2.70854]
[1717795297612,2.25134852,3692.6,3692.0,2.70854]
[1717795301128,2.89999746,3692.7,3692.0,2.70854]
[1717795301345,0.58579746,3692.7,3692.3,2.70832]
[1717795303505,2.3142,3692.9,3692.3,2.70832]
[1717795303706,3.70705466,3692.9,3692.3,2.70832]
[1717795303905,4.29285212,3692.9,3692.3,2.70832]
[1717795305237,0.06272492,3692.8,3692.3,2.70832]
[1717795306380,0.06272492,3692.8,3692.6,2.70811]
[1717795306947,0.58579746,3693.1,3692.6,2.70811]
[1717795307130,0.06294301,3692.7,3692.6,2.70811]
[1717795307334,0.58579746,3693.1,3692.6,2.70811]
[1717795307569,0.06296025,3692.7,3692.6,2.70811]
[1717795307777,0.58579746,3693.1,3692.6,2.70811]
[1717795307980,0.06296025,3692.7,3692.6,2.70811]
[1717795308167,0.58579746,3693.1,3692.6,2.70811]
[1717795308368,0.06296025,3692.7,3692.6,2.70811]
[1717795308975,0.58579746,3693.1,3692.6,2.70811]
[1717795309284,0.58579746,3693.1,3692.4,2.4286]
[1717795309285,7.43,3693.2,3692.9,2.70784]
[1717795309506,0.06310392,3693.0,3692.9,2.70784]
[1717795309641,7.43,3693.2,3692.9,2.70784]
[1717795310352,0.06313626,3693.1,3692.9,2.70784]
[1717795312073,0.58560048,3693.5,3692.9,2.70784]
[1717795312390,1.59662015,3693.5,3692.9,2.70784]
[1717795312713,0.06323327,3693.4,3692.9,2.70784]
[1717795313188,0.06323327,3693.4,3693.1,2.70768]
[1717795314309,7.43,3693.7,3693.1,2.70768]
[1717795314310,0.58553652,3693.6,3693.1,2.70768]
[1717795314786,0.06320773,3693.5,3693.1,2.70768]
[1717795315188,2.89833652,3693.9,3693.1,2.70768]
[1717795315504,1.37165915,3693.8,3693.4,2.70751]
[1717795316300,0.06340037,3693.8,3693.4,2.70751]
[1717795331747,0.06340037,3693.8,3693.6,2.70733]
[1717795333456,0.06375774,3693.7,3693.6,2.70733]
[1717795333757,5.3128,3694.1,3693.6,2.70733]
[1717795334216,0.06383609,3694.0,3693.6,2.70733]
[1717795336424,0.64934457,3694.0,3693.6,2.70733]
[1717795337738,0.06383609,3694.0,3693.6,2.70733]
[1717795337943,0.06383609,3694.0,3693.7,0.501953]
[1717795338318,0.58550848,3694.2,3693.8,2.70723]
[1717795338518,0.06369915,3693.9,3693.8,2.70723]
[1717795338718,0.58550848,3694.2,3693.8,2.70723]
[1717795338920,0.06339251,3693.9,3693.8,2.70723]
[1717795339139,2.94830848,3694.3,3693.8,2.70723]
[1717795339345,0.06345245,3693.9,3693.8,2.70723]
[1717795339517,2.94830848,3694.3,3693.8,2.70723]
[1717795339723,0.06349113,3693.9,3693.8,2.70723]
[1717795340043,0.06351691,3693.9,3693.8,2.70723]
[1717795340213,2.94830848,3694.3,3693.8,2.70723]
[1717795340417,0.06340382,3693.9,3693.8,2.70723]
[1717795340617,2.94830848,3694.3,3693.8,2.70723]
[1717795340817,0.06361566,3693.9,3693.8,2.70723]
[1717795341054,2.94830848,3694.3,3693.8,2.70723]
[1717795341257,0.0637323,3693.9,3693.8,2.70723]
[1717795341556,2.94830848,3694.3,3693.8,2.70723]
[1717795341754,0.0637323,3693.9,3693.8,2.70723]
[1717795342222,0.58550848,3694.2,3693.8,2.70723]
[1717795342424,0.06371523,3693.9,3693.8,2.70723]
[1717795342642,2.94830848,3694.3,3693.8,2.977953]
[1717795342878,0.06373244,3693.9,3693.8,2.70723]
[1717795343016,2.94830848,3694.3,3693.8,2.70723]
[1717795343221,0.06381406,3693.9,3693.8,2.70723]
[1717795343421,2.94830848,3694.3,3693.8,2.70723]
[1717795343736,0.06381406,3693.9,3693.8,2.70723]
[1717795343937,2.94830848,3694.3,3693.8,2.70723]
[1717795344118,0.0638235,3693.9,3693.8,2.70723]
[1717795344622,2.94830848,3694.3,3693.8,2.70723]
[1717795344822,0.0638235,3693.9,3693.8,2.70723]
[1717795345018,2.94830848,3694.3,3693.8,2.977953]
[1717795345223,0.0638235,3693.9,3693.8,2.70723]
[1717795345486,2.94830848,3694.3,3693.8,2.70723]
[1717795345768,0.06380972,3693.9,3693.8,2.70723]
[1717795345922,2.94830848,3694.3,3693.8,2.70723]
[1717795346119,0.0638235,3693.9,3693.8,2.70723]
[1717795346319,2.94830848,3694.3,3693.8,2.70723]
[1717795346521,0.06386123,3693.9,3693.8,2.70723]
[1717795346723,2.94830848,3694.3,3693.8,2.70723]
[1717795346922,0.06386123,3693.9,3693.8,2.70723]
[1717795347124,2.94830848,3694.3,3693.8,2.70723]
[1717795347331,0.06386123,3693.9,3693.8,2.70723]
[1717795347562,2.94830848,3694.3,3693.8,2.70723]
[1717795347880,0.0637853,3693.9,3693.8,2.70723]
[1717795348064,2.94830848,3694.3,3693.8,2.70723]
[1717795348222,0.06386123,3693.9,3693.8,2.70723]
[1717795348422,2.94830848,3694.3,3693.8,2.70723]
[1717795348648,0.06386123,3693.9,3693.8,2.70723]
[1717795348856,2.94830848,3694.3,3693.8,2.70723]
[1717795349057,0.06386123,3693.9,3693.8,2.70723]
[1717795349257,2.94830848,3694.3,3693.8,2.70723]
[1717795349465,0.06386123,3693.9,3693.8,2.70723]
[1717795349630,2.94830848,3694.3,3693.8,2.70723]
[1717795349829,0.0638785,3693.9,3693.8,2.70723]
[1717795350028,2.94830848,3694.3,3693.8,2.70723]
[1717795350231,0.06380257,3693.9,3693.8,2.70723]
[1717795350465,2.3628,3694.3,3693.8,2.70723]
[1717795350669,3.58550848,3694.6,3694.1,2.70697]
[1717795350872,0.58550848,3694.6,3694.1,2.70697]
[1717795351029,3.58550848,3694.9,3694.1,2.70697]
[1717795351229,3.23581393,3694.8,3694.1,2.70697]
[1717795351562,0.58550848,3694.7,3694.1,2.70697]
[1717795351863,0.58550848,3694.6,3694.1,2.70697]
[1717795354878,3.58550848,3694.7,3694.1,2.70697]
[1717795355180,4.97836314,3694.7,3694.1,2.70697]
[1717795355384,4.89747352,3694.6,3693.8,2.70722]
[1717795355681,2.4711,3694.4,3693.8,2.70722]
[1717795355846,0.5482982,3694.3,3693.8,2.70722]
[1717795356042,2.4711,3694.2,3693.8,2.70722]
[1717795361547,3.05655534,3694.2,3693.8,2.70722]
[1717795361754,2.4711,3694.2,3693.8,2.70722]
[1717795361954,3.05655534,3694.2,3693.8,2.70722]
[1717795362159,2.4711,3694.2,3693.8,2.70722]
[1717795362457,3.05655534,3694.2,3693.8,2.70722]
[1717795362655,2.4711,3694.2,3693.8,2.70722]
[1717795362859,3.05655534,3694.2,3693.8,2.70722]
[1717795363058,2.4711,3694.2,3693.8,2.70722]
[1717795363266,3.05655534,3694.2,3693.8,2.70722]
[1717795363484,2.4711,3694.2,3693.8,2.70722]
[1717795363658,3.05655534,3694.2,3693.8,2.70722]
[1717795363860,2.4711,3694.2,3693.8,2.70722]
[1717795364090,3.05655534,3694.2,3693.8,2.70722]
[1717795364357,0.58545534,3694.1,3693.8,2.70722]
[1717795365187,0.58545534,3694.1,3693.8,3.219262]
[1717795365494,0.06362963,3694.0,3693.8,3.219262]
[1717795365658,0.58545534,3694.4,3693.8,2.70722]
[1717795365860,0.0635787,3693.9,3693.8,2.70722]
[1717795366457,0.58545534,3694.0,3693.8,2.70722]
[1717795366657,0.06359064,3693.9,3693.8,2.70722]
[1717795366855,0.58545534,3694.4,3693.8,3.219262]
[1717795367089,0.06359064,3693.9,3693.8,2.70722]
[1717795367297,0.58545534,3694.3,3693.8,2.70722]
[1717795367601,0.06358093,3693.9,3693.8,2.70722]
[1717795367763,0.58545534,3694.1,3693.8,2.70722]
[1717795367965,0.06359288,3693.9,3693.8,3.219262]
[1717795368457,0.58545534,3694.3,3693.8,3.219262]
[1717795368657,0.06367133,3693.9,3693.8,3.219262]
[1717795368880,0.58545534,3694.2,3693.8,3.219262]
[1717795369099,0.06348953,3693.9,3693.8,3.219262]
[1717795369303,0.58545534,3694.4,3693.8,3.219262]
[1717795369465,0.06350675,3693.9,3693.8,2.70722]
[1717795369792,7.43,3694.5,3693.8,2.70722]
[1717795369793,0.58545534,3694.2,3693.8,2.70722]
[1717795369995,0.06367133,3693.9,3693.8,2.70722]
[1717795370203,0.58545534,3694.4,3693.8,2.70722]
[1717795370401,0.06350675,3693.9,3693.8,2.70722]
[1717795370572,0.58545534,3694.3,3693.8,2.70722]
[1717795370774,0.06350675,3693.9,3693.8,2.70722]
[1717795370977,0.58545534,3694.1,3693.8,3.219262]
[1717795371174,0.06350675,3693.9,3693.8,3.219262]
[1717795371410,0.58545534,3694.3,3693.8,3.219262]
[1717795371561,0.06367133,3693.9,3693.8,2.70722]
[1717795371761,0.58545534,3694.1,3693.8,2.70722]
[1717795371998,0.06376829,3694.2,3693.8,2.70722]
[1717795372160,0.06370365,3694.0,3693.8,2.70722]
[1717795372361,0.58545534,3694.3,3693.8,2.70722]
[1717795372665,0.58545534,3694.2,3693.9,0.270722]
[1717795372868,0.58545534,3694.1,3693.8,2.70722]
[1717795373217,0.58545534,3694.4,3693.8,2.70722]
[1717795373501,0.58545534,3694.3,3693.8,2.70722]
[1717795374017,0.58545534,3694.2,3693.8,2.70722]
[1717795374309,0.58545534,3694.1,3693.8,3.219262]
[1717795374467,0.58545534,3694.4,3693.8,3.219262]
[1717795374810,0.58545534,3694.4,3693.8,2.70722]
[1717795375102,0.58545534,3694.3,3693.8,2.70722]
[1717795375418,0.58545534,3694.4,3693.8,2.70722]
[1717795375566,0.58545534,3694.3,3693.8,2.70722]
[1717795375759,0.58545534,3694.4,3693.8,2.70722]
[1717795375999,0.58545534,3694.3,3693.8,2.70722]
[1717795376388,0.58545534,3694.4,3693.8,2.70722]
[1717795376572,0.58545534,3694.3,3693.8,2.70722]
[1717795376766,0.58545534,3694.4,3693.8,2.70722]
[1717795376968,0.58545534,3694.3,3693.8,2.70722]
[1717795377224,0.58545534,3694.4,3693.8,2.70722]
[1717795377369,0.58545534,3694.3,3693.8,2.70722]
[1717795377562,0.58545534,3694.4,3693.8,2.70722]
[1717795378105,0.58544788,3694.3,3693.8,2.70722]
[1717795378278,0.58544788,3694.4,3693.8,2.70722]
[1717795378476,0.58544788,3694.3,3693.8,2.70722]
[1717795378679,0.58544788,3694.2,3693.8,2.70722]
[1717795378998,0.58544788,3694.4,3693.8,2.70722]
[1717795379193,7.43,3694.5,3693.8,2.70722]
[1717795379194,0.58544788,3694.3,3693.8,2.70722]
[1717795379568,0.58544788,3694.2,3693.8,2.70722]
[1717795379768,0.58544788,3694.4,3693.8,2.70722]
[1717795379994,0.58544788,3694.3,3693.8,2.70722]
[1717795380182,0.58544788,3694.2,3693.8,2.70722]
[1717795380378,0.06362095,3694.2,3693.8,2.70722]
[1717795380784,0.58544788,3694.3,3693.8,2.70722]
[1717795380982,0.06364019,3694.1,3693.8,2.70722]
[1717795381306,0.06363227,3694.0,3693.6,2.70734]
[1717795381473,0.06363227,3694.0,3693.6,5.07864]
[1717795381674,0.58544788,3694.2,3693.6,5.586504]
[1717795382004,0.06359994,3693.9,3693.6,5.07864]
[1717795382183,0.58544788,3694.3,3693.6,5.07864]
[1717795382383,2.70686,3694.4,3693.6,5.07864]
[1717795382384,0.06356761,3693.8,3693.6,5.07864]
[1717795382579,0.58544788,3694.3,3693.6,5.07864]
[1717795382809,0.58544788,3694.2,3693.8,2.70718]
[1717795383011,0.58544788,3694.4,3693.8,2.70718]
[1717795383175,0.58544788,3694.3,3693.8,2.70718]
[1717795383374,0.58544788,3694.2,3693.8,2.70718]